Cogmind - Beta 16.1 @@@ ROGUE MODE // 2026.02.17 @ 23:38:11 Player: APerTAS Result: Destroyed by as-84182 with Assembled Blade Performance ------------- Evolutions (1) 500 Regions Visited (5) 1000 Robots Destroyed (3) 15 Value Destroyed (0) 0 Prototype IDs (0) 0 Alien Tech Used (0) 0 Bonus (200) 200 TOTAL SCORE: 1715 Bonus ------- Pacifist 200 Cogmind --------- Core Integrity 0/400 Matter 289/300 Energy 100/100 System Corruption 6% Temperature Cool (0) Movement Core (50) Location -9/Exiles Parts ------- > --- POWER (1) -------- (None) > --- PROPULSION (4) --- (None) > --- UTILITY (2) ------ (None) > --- WEAPON (2) ------- (None) > --- INVENTORY (5) ---- (None) Peak State ------------ > --- POWER ------------ (None) > --- PROPULSION ------- (None) > --- UTILITY ---------- (None) > --- WEAPON ----------- Plasma Cutter > --- INVENTORY -------- (None) [Rating: 2] Favorites ----------- Power None Propulsion None Utility None Weapon Plasma Cutter Special Weapon Plasma Cutter Build | -11 -10 -10 -9 -9 -9 ------- Run | Yrd Mat Min Mat Min Exi Slots Evolved 2 | . . . 2 . . Power . | . . . . . . Propulsion 2 | . . . 2 . . Utility . | . . . . . . Weapon . | . . . . . . Parts Attached 1 | . . . . . 1 Power . | . . . . . . Engine . | . . . . . . Core . | . . . . . . Reactor . | . . . . . . Propulsion . | . . . . . . Treads . | . . . . . . Leg . | . . . . . . Wheel . | . . . . . . Hover . | . . . . . . Flight . | . . . . . . Utility . | . . . . . . Device . | . . . . . . Storage . | . . . . . . Processor . | . . . . . . Hackware . | . . . . . . Protection . | . . . . . . Artifact . | . . . . . . Weapon 1 | . . . . . 1 Energy Gun . | . . . . . . Energy Cannon . | . . . . . . Ballistic Gun . | . . . . . . Ballistic Cannon . | . . . . . . Launcher . | . . . . . . Special Weapon 1 | . . . . . 1 Impact Weapon . | . . . . . . Slashing Weapon . | . . . . . . Piercing Weapon . | . . . . . . Special Melee Weapon . | . . . . . . Unidentified Prototypes . | . . . . . . Parts Lost 1 | . . . . . 1 Power . | . . . . . . Propulsion . | . . . . . . Utility . | . . . . . . Weapon 1 | . . . . . 1 Highest Loss Streak 1 | . . . . . 1 To Critical Strikes . | . . . . . . Average Backups . | . . . . . . Power . | . . . . . . Propulsion . | . . . . . . Utility . | . . . . . . Weapon . | . . . . . . Tool/Special . | . . . . . . Unused Backups . | . . . . . . Power . | . . . . . . Propulsion . | . . . . . . Utility . | . . . . . . Weapon . | . . . . . . Tool/Special . | . . . . . . Average Slot Usage (%) . | . . . . . 3 Peak Build Rating 2 | . . . . . 2 Average Rating . | . . . . . . On Entrance . | . . . . . . Avg Prop Armor Cover (%) . | . . . . . . Naked Turns 388 | . 32 49 8 251 48 Heaviest Build 1 | . . . . . 1 Greatest Support 3 | 3 3 3 3 3 3 Greatest Overweight (x) . | . . . . . . Average Overweight (x) . | . . . . . . Largest Inventory Capacity 5 | 5 5 5 5 5 5 Average Capacity 5 | 5 5 5 5 5 5 Most Carried 1 | . . . . 1 1 Average Carried . | . . . . . . Final Capacity 5 | 5 5 5 5 5 5 Final Carried 1 | . . . . 1 . Class Distribution -------------------- 100% | Mutant Dominant Class ---------------- Mutant | -10/Materials Mutant | -10/Mines Mutant | -9/Materials Mutant | -9/Mines Mutant | -9/Exiles Resources | -11 -10 -10 -9 -9 -9 ----------- Run | Yrd Mat Min Mat Min Exi Matter Collected 18 | . . . . 18 . Remotely . | . . . . . . Salvage Created 170 | . . . . 170 . Parts 12 | . . . . 12 . Haulers Intercepted . | . . . . . . Recyclers Shooed . | . . . . . . Parts Field Recycled . | . . . . . . Retrieved Matter . | . . . . . . Parts Self-Destructed . | . . . . . . Prevented . | . . . . . . Parts Restored . | . . . . . . Kills | -11 -10 -10 -9 -9 -9 ------- Run | Yrd Mat Min Mat Min Exi Combat Hostiles Destroyed . | . . . . . . Classes Destroyed 1 | . . . . 1 . Grunt 3 | . . . . 3 . Best Kill Streak . | . . . . . . Combat Bots Only . | . . . . . . Max Kills in Single Turn 1 | . . . . 1 . Gunslinging . | . . . . . . Exploded . | . . . . . . Melee . | . . . . . . Uniques/NPCs Destroyed . | . . . . . . Combat | -11 -10 -10 -9 -9 -9 -------- Run | Yrd Mat Min Mat Min Exi Hostile Shots Fired 19 | . . 7 . . 12 Missed 6 | . . 2 . . 4 Hits 13 | . . 5 . . 8 Melee 3 | . . . . . 3 Projectile 10 | . . 5 . . 5 Damage Taken 484 | . . 40 . 260 184 Core 466 | . . 40 . 260 166 Absorbed by Shields . | . . . . . . Core Remaining (%) 92 | 100 . 84 . . . Volleys Fired . | . . . . . . Largest . | . . . . . . Hottest . | . . . . . . Shots Fired . | . . . . . . Gun . | . . . . . . Cannon . | . . . . . . Launcher . | . . . . . . Special . | . . . . . . Kinetic . | . . . . . . Thermal . | . . . . . . Explosive . | . . . . . . Electromagnetic . | . . . . . . Robot Hit Streak . | . . . . . . Robot Miss Streak . | . . . . . . Penetration Max . | . . . . . . Secondary Targets . | . . . . . . Shots Hit Robots . | . . . . . . Core Hits 24 | . . . . 24 . Critical Kills . | . . . . . . Critical Parts Destroyed . | . . . . . . Critical Strikes . | . . . . . . Melee Attacks . | . . . . . . Impact . | . . . . . . Slashing . | . . . . . . Piercing . | . . . . . . Sneak Attacks . | . . . . . . Combat Hostiles . | . . . . . . Follow-up Attacks . | . . . . . . Damage Inflicted 462 | . . 2 . 448 12 Guns . | . . . . . . Cannons . | . . . . . . Explosions . | . . . . . . Melee . | . . . . . . Ramming 462 | . . 2 . 448 12 Kinetic . | . . . . . . Thermal . | . . . . . . Explosive . | . . . . . . Electromagnetic . | . . . . . . Impact . | . . . . . . Slashing . | . . . . . . Piercing . | . . . . . . Highest Corruption 6 | . 3 3 . 6 6 Average Corruption 5 | . 2 3 . 5 6 Corruption Purged . | . . . . . . Corruption Blocked . | . . . . . . Effects 10 | . 1 . . 4 5 Message Errors 1 | . . . . 1 . Matter Fused 2 | . 1 . . . 1 Heat Flow Errors 3 | . . . . 2 1 Energy Discharges 1 | . . . . . 1 Data Loss (minor) 3 | . . . . 1 2 Overload Shots . | . . . . . . Overflow Damage . | . . . . . . Projectiles . | . . . . . . Explosions . | . . . . . . Melee . | . . . . . . Knockbacks 2 | . . . . 2 . Impact 2 | . . . . 2 . Kinetic . | . . . . . . Secondary . | . . . . . . Self-Inflicted Damage 208 | . . . . 196 12 Shots . | . . . . . . Rammed 147 | . . 2 . 145 . Targets Rammed 147 | . . 2 . 145 . Kicked . | . . . . . . Crushed . | . . . . . . Highest Temperature 206 | . . . . 206 153 Average Temperature 90 | . . . . 94 83 Received Heat Transfer 40 | . . . . . 40 Siege Activations . | . . . . . . Martial Activations . | . . . . . . Shielding Activations . | . . . . . . Robots Disrupted . | . . . . . . Combat Hostiles . | . . . . . . Robots Corrupted . | . . . . . . Combat Hostiles . | . . . . . . Parts Fried . | . . . . . . Impact Corruptions . | . . . . . . Robots Melted . | . . . . . . Combat Hostiles . | . . . . . . Parts Melted . | . . . . . . Heat Transferred . | . . . . . . Parts Sabotaged . | . . . . . . Parts Stolen . | . . . . . . Parts Stripped . | . . . . . . Power Chain Reactions . | . . . . . . Alert | -11 -10 -10 -9 -9 -9 ------- Run | Yrd Mat Min Mat Min Exi Maximum Alert Level . | . . . . . . Low Security (%) 100 | 100 100 100 100 100 . Level 1 . | . . . . . . Level 2 . | . . . . . . Level 3 . | . . . . . . Level 4 . | . . . . . . Level 5 . | . . . . . . High Security . | . . . . . . Max Security . | . . . . . . Peak Influence 15 | . . 15 1 . . Initial 1 | . . . 1 . . Average . | . . 1 1 . . Influence Increases 15 | . . 15 . . . Lose Combat Pursuer 15 | . . 15 . . . Influence Decreases 15 | . . 10 4 1 . Entered New Map 5 | . . . 4 1 . Time Decay 10 | . . 10 . . . Squads Dispatched 1 | . 1 . . . . Investigation . | . . . . . . Extermination . | . . . . . . Reinforcement 1 | . 1 . . . . Assault . | . . . . . . Garrison . | . . . . . . Intercept . | . . . . . . Searches Triggered . | . . . . . . Construction Impeded . | . . . . . . Haulers Reinforced . | . . . . . . Active Scanning Responses . | . . . . . . Cargo Convoy Interrupts . | . . . . . . Stealth | -11 -10 -10 -9 -9 -9 --------- Run | Yrd Mat Min Mat Min Exi Distress Signals 1 | . 1 . . . . Communications Jammed . | . . . . . . Distress Signals . | . . . . . . Times Spotted 16 | . 3 4 2 . 7 Peak Tracking Total 9 | . 3 3 2 . 9 Tactical Retreats 1 | . . 1 . . . Traps | -11 -10 -10 -9 -9 -9 ------- Run | Yrd Mat Min Mat Min Exi Traps Triggered 2 | . 2 . . . . Indirectly . | . . . . . . Trap Hack Attempts . | . . . . . . Triggered . | . . . . . . Disarmed . | . . . . . . Reprogrammed . | . . . . . . Reused . | . . . . . . Traps Extracted . | . . . . . . Installed . | . . . . . . Triggered . | . . . . . . Machines | -11 -10 -10 -9 -9 -9 ---------- Run | Yrd Mat Min Mat Min Exi Machines Disabled 1 | . . . . . 1 Max in Single Turn 1 | . . . . . 1 Machines Repaired . | . . . . . . Machines Dismantled 1 | . . . . . 1 Machines Sabotaged . | . . . . . . Overloaded Fab Kills . | . . . . . . Hacking | -11 -10 -10 -9 -9 -9 --------- Run | Yrd Mat Min Mat Min Exi Machines Accessed . | . . . . . . Terminals . | . . . . . . Fabricators . | . . . . . . Repair Stations . | . . . . . . Recycling Units . | . . . . . . Scanalyzers . | . . . . . . Garrison Access . | . . . . . . Total Hacks . | . . . . . . Successful . | . . . . . . Failed . | . . . . . . Catastrophic . | . . . . . . Database Lockouts . | . . . . . . Manual . | . . . . . . Terminals . | . . . . . . Fabricators . | . . . . . . Repair Stations . | . . . . . . Recycling Units . | . . . . . . Scanalyzers . | . . . . . . Garrison Access . | . . . . . . Terminal Hacks . | . . . . . . Fabricator Hacks . | . . . . . . Repair Station Hacks . | . . . . . . Recycling Unit Hacks . | . . . . . . Scanalyzer . | . . . . . . Garrison Access Hacks . | . . . . . . Unauthorized Hacks . | . . . . . . Terminals . | . . . . . . Fabricators . | . . . . . . Repair Stations . | . . . . . . Recycling Units . | . . . . . . Scanalyzers . | . . . . . . Garrison Access . | . . . . . . Data Cores Recovered . | . . . . . . Used . | . . . . . . Hacking Detections . | . . . . . . Full Trace Events . | . . . . . . Feedback Events . | . . . . . . Feedback Blocked . | . . . . . . Robot Schematics Acquired . | . . . . . . Robots Built . | . . . . . . Authchips . | . . . . . . Time . | . . . . . . Total Robot Build Rating . | . . . . . . Part Schematics Acquired . | . . . . . . Parts Built . | . . . . . . Authchips . | . . . . . . Time . | . . . . . . Total Part Build Rating . | . . . . . . Part Studies Acquired . | . . . . . . Parts Repaired . | . . . . . . Time . | . . . . . . Parts Recycled . | . . . . . . Recycled Matter . | . . . . . . Retrieved Matter . | . . . . . . Retrieved Components . | . . . . . . Parts Scanalyzed . | . . . . . . Part Schematics Acquired . | . . . . . . Parts Damaged . | . . . . . . Bothacking | -11 -10 -10 -9 -9 -9 ------------ Run | Yrd Mat Min Mat Min Exi Used RIF Installer . | . . . . . . Robots Hacked . | . . . . . . Non-combat . | . . . . . . Combat . | . . . . . . Robot Hacks Applied . | . . . . . . Relay Couplers Released . | . . . . . . Fabnet Peak Effective % . | . . . . . . Robots Rewired . | . . . . . . Allies Hacked . | . . . . . . Hacks Repelled . | . . . . . . Allies | -11 -10 -10 -9 -9 -9 -------- Run | Yrd Mat Min Mat Min Exi Total Allies 3 | . . . . 3 . Largest Group 3 | . . . . 3 . Highest-Rated Group 40 | . . . . 40 . Highest-Rated Ally 16 | . . . . 16 . Total Orders 3 | . . . . 3 . STAY 3 | . . . . 3 . Ally Attacks . | . . . . . . Total Damage . | . . . . . . Kills . | . . . . . . Allies Corrupted . | . . . . . . Allies Melted . | . . . . . . Intel | -11 -10 -10 -9 -9 -9 ------- Run | Yrd Mat Min Mat Min Exi Active Infowar (turns) . | . . . . . . Robot Analysis Total . | . . . . . . Derelict Logs Recovered 2 | . . 1 . 1 . Drone Launches . | . . . . . . Drone Recoveries . | . . . . . . Exploration | -11 -10 -10 -9 -9 -9 ------------- Run | Yrd Mat Min Mat Min Exi Turns Passed 433 | 9 32 49 8 251 84 Spaces Moved 488 | 18 63 93 15 209 90 Core 488 | 18 63 93 15 209 90 Treads . | . . . . . . Legs . | . . . . . . Wheels . | . . . . . . Hover . | . . . . . . Flight . | . . . . . . Fastest Speed 50 | 50 50 50 50 50 50 Average Speed 50 | 50 50 50 50 50 50 Slowest Speed 50 | 50 50 50 50 50 50 Overloaded Moves . | . . . . . . Propulsion Burnouts . | . . . . . . Robots Hopped . | . . . . . . Potential Cave-ins . | . . . . . . Cave-ins Triggered . | . . . . . . Exploration Rate (%) 20 | 3 27 24 3 33 35 Regions Visited 5 Branch Regions 3 Pre-discovered Areas . | . . . . . . Known Exits Taken . | . . . . . . Unknown Exits Taken 5 | 1 1 1 1 1 . Scrap Searched 1 | . . . . 1 . Spaces Dug . | . . . . . . Terrain Destroyed . | . . . . . . Melee . | . . . . . . Projectile . | . . . . . . AOE . | . . . . . . Terrain Rammed 2 | . . . . . 2 Walls Destroyed . | . . . . . . Machines Disabled . | . . . . . . Actions | -11 -10 -10 -9 -9 -9 --------- Run | Yrd Mat Min Mat Min Exi Total 646 | 17 62 94 14 354 105 Wait . | . . . . . . Move 483 | 17 62 92 14 208 90 Hop . | . . . . . . Pick Up 1 | . . . . 1 . Fast Attach . | . . . . . . Attach 1 | . . . . . 1 Detach . | . . . . . . Swap . | . . . . . . Drop . | . . . . . . Fire . | . . . . . . Melee . | . . . . . . Ram 149 | . . 2 . 145 2 Kick . | . . . . . . Crush . | . . . . . . Escape Stasis . | . . . . . . Rewire . | . . . . . . Trap . | . . . . . . Miscellaneous 12 | . . . . . 12 Route ------- -11/Scrapyard -10/Materials -10/Mines (discovered 2 exits: [*Mat] / Sub) -9/Materials -9/Mines (discovered 2 exits: [*Mat] / [*Exi]) -9/Exiles History --------- Turn | Location | Event 3 | -11/Scrapyard | Discovered new exit (range 15) 10 | -11/Scrapyard | Entered Materials 38 | -10/Materials | Discovered new exit (range 9) 42 | -10/Materials | Entered Mines 50 | -10/Mines | Identified exit to Subcaves 54 | -10/Mines | Met a Derelict bent on vengeance 62 | -10/Mines | Found a Scrap Suit stashed away for nefarious purposes 88 | -10/Mines | Discovered new exit (range 6) 89 | -10/Mines | Assembled infested the area 91 | -10/Mines | Entered Materials 91 | -9/Materials | Evolved 2 slots: Propulsion x2 91 | -9/Materials | Discovered new exit (range 15) 99 | -9/Materials | Entered Mines 105 | -9/Mines | Assisted by bots powering up and referring to "LRC-V3" 221 | -9/Mines | Core integrity fell below 50% 273 | -9/Mines | Learned Materials garrison access intel 274 | -9/Mines | Discovered new exit (range 15) 305 | -9/Mines | Build established: Mutant 347 | -9/Mines | Deemed a non-threat by the Exiles lab entrance 348 | -9/Mines | Discovered new exit (range 5) 350 | -9/Mines | Entered Exiles 362 | -9/Exiles | Met 8R-AWN 372 | -9/Exiles | Met EX-HEX 385 | -9/Exiles | Met EX-BIN 404 | -9/Exiles | Attacked by the Exiles 430 | -9/Exiles | Core integrity fell below 20% 434 | -9/Exiles | Destroyed by as-84182 with Assembled Blade Last Messages --------------- prototypes. How's that for a sweet deal? 00387_ EX-BIN: "Please do it. The faster we get more data and tweak this thing to perfection, the faster I can get back to my spacelab designs." 00393_ System corrupted: Component data lost. 00394_ Dismantling FarCom Aligner with Plasma Cutter. 00403_ FarCom Aligner dismantled. 00404_ EXILES: Hostile robot within lab perimeter. Defensive protocols time, folks! 00406_ EX-BIN: "I just want to science!" 00407_ Dismantling FarCom Aligner with Plasma Cutter. 00414_ System corrupted: Heat flow error (+181). 00415_ Dismantling FarCom Aligner with Plasma Cutter. 00415_ FarCom Aligner dismantled. 00419_ Dismantling FarCom Aligner with Plasma Cutter. 00428_ FarCom Aligner dismantled. 00429_ Plasma Cutter destroyed. 00432_ System corrupted: Component data lost. 00433_ Slammed into FarCom Aligner. 00434_ Destabilizing: Core damaged (-20). Map ----- +----------------------------------------------------+ | ?????????????????????????????????????????????????? | | ?????????????????????????????????????????????????? | | ?????????????????????????????????????????????????? | | ?????????????????????????????????????????????????? | | ?????????????????????????????????????????????????? | | ?????????????????????????????????????????????????? | | ?????????????????????????????????????????????????? | | ?????????????????????????????????????????????????? | | ?????????????????????????????????????????????????? | | ?????????????????????????????????????????????????? | | ?????????????????????????????????????????????????? | | ?????????????????????????????????????????????????? | | ??????????????? ?????????????????????????????????? | | ???????????# ????????????????????????????????? | | ????????? ## ????????????????????????????????? | | ?????????? ????????????????????????????????? | | ??????????? #???????????????????????????????? | | ???????????# #???????????????????????????????? | | ???????????# #?#########?????????????????????? | | ???????????# #?#"""""""#?????????????????????? | | ???????????# #?#"""""""#?????????????????????? | | ???????????# #?#"""" ""#?????????????????????? | | ??????????## ###" "#?????????????????????? | | ??????????#" "#?????????????????????? | | ??????????#" a aa #?????????????????????? | | ??????????#" "@"#?????????????????????? | | ??????????#" a """#?????????????????????? | | ??????????#" aa """#?????????????????????? | | ??????????#" a """#?????????????????????? | | ??????????## """"?????????????????????? | | ???????????# """#?????????????????????? | | ???????????#" "X" """"?????????????????????? | | ???????????#" """ #?????????????????????? | | ???????????#" """""""""#?????????????????????? | | ??????????##" ###########?????????????????????? | | ?????????##"" #???????????????????????????????? | | ???????###"" #???????????????????????????????? | | ???????""""" ##??????????????????????????????? | | ?????"" " "" ##???###########???????????????? | | ?????"" " #####"""""""""##??????????????? | | ???? " " """ """"##?????????????? | | ?? "" " #?????????????? | | ? " """#?????????????? | | ?? " "#???????????### | | ?? " "##?????????##" | | ?? ""###???????#" | | ?? """""" """#??????##" | | ??? ######""" "#????### | | ??? ""#?????#####""" ##???# | | ?????????????????##""" ##?## | +----------------------------------------------------+ Best States ------------- Heat Dissipation 28 Energy Generation 5 Energy Capacity 100 Matter Stores 300 Matter Capacity 300 Sight Range 16 Terrain Scan Density 10 Evasion (%) 50 Item Schematics ----------------- None Robot Schematics ------------------ None Fabricated ------------ Nothing Repaired ---------- Nothing Studied --------- None Alien Tech Used ----------------- None Achievements -------------- None Challenges ------------ None Game ------ Seed DiametricLaunchDrive Manual? 0 Play Time 00:05:50 Cumulative 51.6 hours Start 2026.02.17 @ 23:33:04 End 2026.02.17 @ 23:38:11 Sessions 1 Manual Loads 0 Difficulty Rogue Special Mode None Game No. 162 Rogue 162 Adventurer 0 Explorer 0 Win Type - Total 0 Types 0/0/0/0/0/0/0/0/0/0 Lore% 59 Gallery% 34 Achievement% 32 Wizard Run 0 Options --------- Layout 0 ASCII 0 Keyboard 0 Movement Arrows Keybinds 0 Fullscreen 1 Font 24/Terminus Map View 64x52 Zoom Use 0% Tactical HUD 1 Map Filters NONE Filters NONE Steam 1 RUN: 099236c8-c914-4bbb-991e-c49614bfbf23